[Event "Late-Titled-Tuesday-Blitz-March-26-2024"]
[Site "Chess.com"]
[Date "2024.03.26"]
[Round "5"]
[White "Viktor_Poddubnyi"]
[Black "rdarruda"]
[Result "0-1"]
[WhiteElo "2303"]
[BlackElo "2523"]
[TimeControl "180+1"]
[EndTime "14:55:20 PDT"]
[Termination "rdarruda won by resignation"]

1. e4 {[%clk 0:03:00]} 1... c5 {[%clk 0:02:59.6]} 2. Nf3 {[%clk 0:02:59.7]} 2...
Nc6 {[%clk 0:02:59.8]} 3. d4 {[%clk 0:03:00]} 3... cxd4 {[%clk 0:03:00.1]} 4.
Nxd4 {[%clk 0:03:00.9]} 4... e5 {[%clk 0:03:00.4]} 5. Nb5 {[%clk 0:03:00.7]}
5... a6 {[%clk 0:03:00.9]} 6. Nd6+ {[%clk 0:03:00.6]} 6... Bxd6 {[%clk
0:03:01.6]} 7. Qxd6 {[%clk 0:03:01.4]} 7... Qe7 {[%clk 0:03:02.2]} 8. Qd1 {[%clk
0:02:52.8]} 8... Nf6 {[%clk 0:03:01.4]} 9. Nc3 {[%clk 0:02:52.2]} 9... d6 {[%clk
0:03:01.9]} 10. Bc4 {[%clk 0:02:45.2]} 10... Be6 {[%clk 0:03:01.1]} 11. Bb3
{[%clk 0:02:37.5]} 11... h6 {[%clk 0:02:59.5]} 12. O-O {[%clk 0:02:36.3]} 12...
O-O {[%clk 0:02:58.6]} 13. Be3 {[%clk 0:02:35.7]} 13... Rac8 {[%clk 0:02:55.7]}
14. Nd5 {[%clk 0:02:27.5]} 14... Bxd5 {[%clk 0:02:54.6]} 15. exd5 {[%clk
0:02:28.4]} 15... Na5 {[%clk 0:02:52.3]} 16. c3 {[%clk 0:02:02.7]} 16... Nc4
{[%clk 0:02:43.7]} 17. Bxc4 {[%clk 0:01:27.8]} 17... Rxc4 {[%clk 0:02:43.2]} 18.
a4 {[%clk 0:01:21.2]} 18... Rfc8 {[%clk 0:02:24.9]} 19. Qd2 {[%clk 0:01:11.8]}
19... Ng4 {[%clk 0:02:21]} 20. Bb6 {[%clk 0:01:10.1]} 20... Qh4 {[%clk
0:02:15.2]} 21. h3 {[%clk 0:01:06.6]} 21... Nf6 {[%clk 0:02:15.6]} 22. Be3
{[%clk 0:00:59.1]} 22... Rxa4 {[%clk 0:02:11.5]} 23. Rac1 {[%clk 0:00:39.6]}
23... Qe4 {[%clk 0:02:02.6]} 24. Rfd1 {[%clk 0:00:36.9]} 24... Ra2 {[%clk
0:02:02.4]} 25. Rc2 {[%clk 0:00:17.5]} 25... Nxd5 {[%clk 0:01:56.9]} 0-1

[Event "Late-Titled-Tuesday-Blitz-March-26-2024"]
[Site "Chess.com"]
[Date "2024.03.26"]
[Round "5"]
[White "Shiner22"]
[Black "tarno17"]
[Result "1-0"]
[WhiteElo "2407"]
[BlackElo "2200"]
[TimeControl "180+1"]
[EndTime "14:55:45 PDT"]
[Termination "Shiner22 won by checkmate"]

1. e4 {[%clk 0:03:00.9]} 1... c5 {[%clk 0:02:58.7]} 2. d4 {[%clk 0:03:00.5]}
2... cxd4 {[%clk 0:02:57.5]} 3. c3 {[%clk 0:03:00.9]} 3... d5 {[%clk 0:02:58.1]}
4. exd5 {[%clk 0:03:00.7]} 4... Qxd5 {[%clk 0:02:59]} 5. cxd4 {[%clk 0:03:01.1]}
5... e6 {[%clk 0:02:58.3]} 6. Nc3 {[%clk 0:03:00.6]} 6... Qd6 {[%clk 0:02:58.6]}
7. Nf3 {[%clk 0:03:00.4]} 7... Nf6 {[%clk 0:02:59.1]} 8. Bd3 {[%clk 0:03:00.4]}
8... Be7 {[%clk 0:02:58.6]} 9. O-O {[%clk 0:03:00.7]} 9... O-O {[%clk
0:02:57.5]} 10. Re1 {[%clk 0:03:01]} 10... Nc6 {[%clk 0:02:53.7]} 11. Bg5 {[%clk
0:03:00.4]} 11... h6 {[%clk 0:02:53]} 12. Bh4 {[%clk 0:02:58.1]} 12... a6 {[%clk
0:02:53.2]} 13. Bg3 {[%clk 0:02:57.6]} 13... Qd8 {[%clk 0:02:51.3]} 14. a3
{[%clk 0:02:55.4]} 14... b5 {[%clk 0:02:47.2]} 15. Bc2 {[%clk 0:02:53.6]} 15...
Bb7 {[%clk 0:02:27.2]} 16. Qd3 {[%clk 0:02:42.8]} 16... Re8 {[%clk 0:02:05.1]}
17. Rad1 {[%clk 0:02:39.3]} 17... Rc8 {[%clk 0:01:39.2]} 18. Bh4 {[%clk
0:02:38.1]} 18... g6 {[%clk 0:01:30.1]} 19. Bg3 {[%clk 0:02:23.4]} 19... b4
{[%clk 0:01:17.3]} 20. Ne2 {[%clk 0:02:21.9]} 20... bxa3 {[%clk 0:00:35.6]} 21.
bxa3 {[%clk 0:02:21.6]} 21... Na5 {[%clk 0:00:35.6]} 22. Nf4 {[%clk 0:02:17.9]}
22... Rxc2 {[%clk 0:00:24.1]} 23. Qxc2 {[%clk 0:02:15.2]} 23... Kg7 {[%clk
0:00:19.9]} 24. Ne5 {[%clk 0:02:12.9]} 24... Qc8 {[%clk 0:00:16.3]} 25. Qb1
{[%clk 0:02:01.3]} 25... g5 {[%clk 0:00:10]} 26. Rc1 {[%clk 0:01:39.5]} 26...
Qa8 {[%clk 0:00:03.2]} 27. Nxe6+ {[%clk 0:01:39]} 27... fxe6 {[%clk 0:00:01.4]}
28. Qg6+ {[%clk 0:01:38]} 28... Kh8 {[%clk 0:00:01.8]} 29. Nf7# {[%clk
0:01:37.9]} 1-0

[Event "Late-Titled-Tuesday-Blitz-March-26-2024"]
[Site "Chess.com"]
[Date "2024.03.26"]
[Round "5"]
[White "jefferyx"]
[Black "hansen"]
[Result "1/2-1/2"]
[WhiteElo "3104"]
[BlackElo "2972"]
[TimeControl "180+1"]
[EndTime "14:55:55 PDT"]
[Termination "Game drawn by repetition"]

1. d4 {[%clk 0:02:59.9]} 1... Nf6 {[%clk 0:02:17.4]} 2. Nf3 {[%clk 0:02:59.6]}
2... g6 {[%clk 0:02:16.8]} 3. Nbd2 {[%clk 0:02:59.6]} 3... d5 {[%clk 0:02:14.7]}
4. b3 {[%clk 0:02:59.8]} 4... Bg7 {[%clk 0:02:15]} 5. Bb2 {[%clk 0:03:00.3]}
5... O-O {[%clk 0:02:15.7]} 6. e3 {[%clk 0:03:00.9]} 6... Re8 {[%clk 0:02:15.3]}
7. Be2 {[%clk 0:03:01.1]} 7... Nc6 {[%clk 0:02:15.3]} 8. O-O {[%clk 0:03:01.2]}
8... Bg4 {[%clk 0:02:04.9]} 9. c4 {[%clk 0:03:01.1]} 9... e6 {[%clk 0:02:05.3]}
10. h3 {[%clk 0:02:53.4]} 10... Bxf3 {[%clk 0:02:05.3]} 11. Nxf3 {[%clk
0:02:54.3]} 11... Ne7 {[%clk 0:02:03.9]} 12. b4 {[%clk 0:02:37.5]} 12... Nf5
{[%clk 0:01:52.3]} 13. a4 {[%clk 0:02:37.4]} 13... c6 {[%clk 0:01:45]} 14. Qb3
{[%clk 0:02:29.5]} 14... Rc8 {[%clk 0:01:40.4]} 15. Rac1 {[%clk 0:02:26.6]}
15... Nd6 {[%clk 0:01:35.5]} 16. c5 {[%clk 0:02:10]} 16... Nde4 {[%clk
0:01:34.8]} 17. b5 {[%clk 0:02:10.4]} 17... Nd7 {[%clk 0:01:33.6]} 18. Bd3
{[%clk 0:02:03.7]} 18... e5 {[%clk 0:01:26.6]} 19. Bxe4 {[%clk 0:01:43]} 19...
dxe4 {[%clk 0:01:27]} 20. Nxe5 {[%clk 0:01:43.7]} 20... Nxe5 {[%clk 0:01:23.7]}
21. dxe5 {[%clk 0:01:44.6]} 21... Bxe5 {[%clk 0:01:24.1]} 22. Rfd1 {[%clk
0:01:41.6]} 22... Qf6 {[%clk 0:01:15.1]} 23. Bxe5 {[%clk 0:01:35.4]} 23... Rxe5
{[%clk 0:01:16]} 24. b6 {[%clk 0:01:22.8]} 24... axb6 {[%clk 0:01:09.6]} 25.
cxb6 {[%clk 0:01:22.9]} 25... Re7 {[%clk 0:01:06.8]} 26. a5 {[%clk 0:01:20.5]}
26... Ra8 {[%clk 0:01:06.8]} 27. Rc5 {[%clk 0:01:19.4]} 27... Kg7 {[%clk
0:00:39.9]} 28. Rd4 {[%clk 0:01:18.5]} 28... Re5 {[%clk 0:00:38.1]} 29. Rxe5
{[%clk 0:01:12.4]} 29... Qxe5 {[%clk 0:00:37.8]} 30. Rd7 {[%clk 0:01:13]} 30...
Qa1+ {[%clk 0:00:37.4]} 31. Kh2 {[%clk 0:01:12.8]} 31... Qe5+ {[%clk 0:00:37.7]}
32. Kg1 {[%clk 0:01:03.7]} 32... Qa1+ {[%clk 0:00:37.1]} 33. Kh2 {[%clk
0:01:00.5]} 33... Qe5+ {[%clk 0:00:37.6]} 34. Kg1 {[%clk 0:00:57.5]} 1/2-1/2

[Event "Late-Titled-Tuesday-Blitz-March-26-2024"]
[Site "Chess.com"]
[Date "2024.03.26"]
[Round "5"]
[White "Christian_Jordan"]
[Black "Cmorales2001"]
[Result "0-1"]
[WhiteElo "2027"]
[BlackElo "2375"]
[TimeControl "180+1"]
[EndTime "14:55:57 PDT"]
[Termination "Cmorales2001 won on time"]

1. e4 {[%clk 0:02:58.9]} 1... c6 {[%clk 0:02:59.1]} 2. d4 {[%clk 0:02:58]} 2...
d5 {[%clk 0:03:00]} 3. e5 {[%clk 0:02:58.1]} 3... Bf5 {[%clk 0:02:58.7]} 4. Nf3
{[%clk 0:02:57.8]} 4... e6 {[%clk 0:02:57.8]} 5. Be2 {[%clk 0:02:57.7]} 5... Bg6
{[%clk 0:02:56]} 6. Nbd2 {[%clk 0:02:54.4]} 6... c5 {[%clk 0:02:55.4]} 7. Nb3
{[%clk 0:02:53]} 7... cxd4 {[%clk 0:02:46.8]} 8. Nbxd4 {[%clk 0:02:50.7]} 8...
Nc6 {[%clk 0:02:45.9]} 9. O-O {[%clk 0:02:44.3]} 9... Bc5 {[%clk 0:02:31.3]} 10.
c3 {[%clk 0:02:29.4]} 10... Nge7 {[%clk 0:02:29.2]} 11. b4 {[%clk 0:02:15.5]}
11... Bb6 {[%clk 0:02:28.7]} 12. a4 {[%clk 0:02:00.9]} 12... a5 {[%clk
0:02:19.1]} 13. b5 {[%clk 0:01:55.5]} 13... Nxd4 {[%clk 0:02:18.7]} 14. cxd4
{[%clk 0:01:50.8]} 14... Rc8 {[%clk 0:02:19.2]} 15. Ba3 {[%clk 0:01:41.5]} 15...
O-O {[%clk 0:02:16.4]} 16. Bd3 {[%clk 0:01:33.7]} 16... Qd7 {[%clk 0:02:11.6]}
17. Bxg6 {[%clk 0:01:30.9]} 17... fxg6 {[%clk 0:02:12.5]} 18. Qd2 {[%clk
0:01:23]} 18... Rc4 {[%clk 0:02:01.5]} 19. Bc5 {[%clk 0:01:02.2]} 19... Bxc5
{[%clk 0:01:53.3]} 20. dxc5 {[%clk 0:01:02.2]} 20... Rxc5 {[%clk 0:01:53.5]} 21.
Qxa5 {[%clk 0:01:01.8]} 21... Rc4 {[%clk 0:01:52.6]} 22. Qb6 {[%clk 0:00:58.2]}
22... Nc8 {[%clk 0:01:50.6]} 23. Qe3 {[%clk 0:00:51.3]} 23... Re4 {[%clk
0:01:50.3]} 24. Qc3 {[%clk 0:00:44.3]} 24... Nb6 {[%clk 0:01:41.7]} 25. Rfe1
{[%clk 0:00:37.7]} 25... Nxa4 {[%clk 0:01:36.3]} 26. Qa5 {[%clk 0:00:23.6]}
26... Nc5 {[%clk 0:01:33.5]} 27. Ng5 {[%clk 0:00:08.2]} 27... Rg4 {[%clk
0:01:24.3]} 0-1

[Event "Late-Titled-Tuesday-Blitz-March-26-2024"]
[Site "Chess.com"]
[Date "2024.03.26"]
[Round "5"]
[White "Brahianzevich"]
[Black "BabageldiAnnaberdiyev"]
[Result "1/2-1/2"]
[WhiteElo "2485"]
[BlackElo "2634"]
[TimeControl "180+1"]
[EndTime "14:56:02 PDT"]
[Termination "Game drawn by repetition"]

1. e4 {[%clk 0:02:56.9]} 1... e6 {[%clk 0:02:59.7]} 2. Qe2 {[%clk 0:02:57]} 2...
c5 {[%clk 0:02:58.5]} 3. Nf3 {[%clk 0:02:54.9]} 3... Nc6 {[%clk 0:02:58.9]} 4.
d3 {[%clk 0:02:54.5]} 4... d6 {[%clk 0:02:58.9]} 5. g3 {[%clk 0:02:54]} 5... g6
{[%clk 0:02:58.9]} 6. Bg2 {[%clk 0:02:46.8]} 6... Bg7 {[%clk 0:02:59]} 7. O-O
{[%clk 0:02:47.3]} 7... h6 {[%clk 0:02:58]} 8. c3 {[%clk 0:02:47.3]} 8... Nge7
{[%clk 0:02:58]} 9. a4 {[%clk 0:02:45.5]} 9... O-O {[%clk 0:02:57.3]} 10. Na3
{[%clk 0:02:45.5]} 10... e5 {[%clk 0:02:57.4]} 11. h3 {[%clk 0:02:44.6]} 11...
f5 {[%clk 0:02:56.5]} 12. Nc4 {[%clk 0:02:41.4]} 12... f4 {[%clk 0:02:56.3]} 13.
g4 {[%clk 0:02:35]} 13... g5 {[%clk 0:02:56.2]} 14. b4 {[%clk 0:02:32.7]} 14...
cxb4 {[%clk 0:02:54.7]} 15. cxb4 {[%clk 0:02:32.9]} 15... Nxb4 {[%clk
0:02:52.8]} 16. a5 {[%clk 0:02:32.7]} 16... Nbc6 {[%clk 0:02:38.1]} 17. Ba3
{[%clk 0:02:32.5]} 17... Rf6 {[%clk 0:02:38.3]} 18. Rfc1 {[%clk 0:02:29.3]}
18... Ng6 {[%clk 0:02:24.8]} 19. Rab1 {[%clk 0:02:29.2]} 19... Bf8 {[%clk
0:02:22.3]} 20. Qd2 {[%clk 0:02:25.4]} 20... Rf7 {[%clk 0:02:04.8]} 21. d4
{[%clk 0:02:22.9]} 21... Nxd4 {[%clk 0:01:48.5]} 22. Nxd4 {[%clk 0:02:21.8]}
22... exd4 {[%clk 0:01:49.4]} 23. Qxd4 {[%clk 0:02:20.8]} 23... Be6 {[%clk
0:01:46.7]} 24. Nxd6 {[%clk 0:02:18]} 24... Rd7 {[%clk 0:01:44.6]} 25. e5 {[%clk
0:02:18.1]} 25... Bg7 {[%clk 0:01:41.3]} 26. Bd5 {[%clk 0:02:15.2]} 26... Qe7
{[%clk 0:01:08.8]} 27. Qc4 {[%clk 0:02:15.3]} 27... Nf8 {[%clk 0:01:01.7]} 28.
Nf5 {[%clk 0:02:06.4]} 28... Qf7 {[%clk 0:01:01.4]} 29. Bxe6 {[%clk 0:02:02.8]}
29... Qxe6 {[%clk 0:01:02.1]} 30. Nxg7 {[%clk 0:01:58.6]} 30... Qxc4 {[%clk
0:00:59.3]} 31. Rxc4 {[%clk 0:01:57.9]} 31... Kxg7 {[%clk 0:01:00]} 32. Bd6
{[%clk 0:01:47.1]} 32... Ne6 {[%clk 0:00:58.2]} 33. Kg2 {[%clk 0:01:45.1]} 33...
Kf7 {[%clk 0:00:57.3]} 34. Kf3 {[%clk 0:01:45.1]} 34... Nd8 {[%clk 0:00:55.8]}
35. Ke4 {[%clk 0:01:41.7]} 35... Ke6 {[%clk 0:00:55.8]} 36. Rc7 {[%clk
0:01:38.5]} 36... b6 {[%clk 0:00:52.8]} 37. axb6 {[%clk 0:01:32.8]} 37... axb6
{[%clk 0:00:53.7]} 38. Rxd7 {[%clk 0:01:32.6]} 38... Kxd7 {[%clk 0:00:52]} 39.
Rxb6 {[%clk 0:01:32.9]} 39... Ra2 {[%clk 0:00:51.2]} 40. Kf3 {[%clk 0:01:26.2]}
40... Rc2 {[%clk 0:00:46.7]} 41. Ra6 {[%clk 0:01:24.3]} 41... Rc3+ {[%clk
0:00:46.8]} 42. Ke4 {[%clk 0:01:20.4]} 42... Rc2 {[%clk 0:00:46.2]} 43. Kf3
{[%clk 0:01:20.3]} 43... Rc3+ {[%clk 0:00:45.5]} 44. Ke4 {[%clk 0:01:18.7]}
44... Rc2 {[%clk 0:00:45.7]} 45. Kf3 {[%clk 0:01:16.5]} 1/2-1/2

[Event "Late-Titled-Tuesday-Blitz-March-26-2024"]
[Site "Chess.com"]
[Date "2024.03.26"]
[Round "5"]
[White "SuperJesus88"]
[Black "dropstoneDP"]
[Result "0-1"]
[WhiteElo "2490"]
[BlackElo "2999"]
[TimeControl "180+1"]
[EndTime "14:56:06 PDT"]
[Termination "dropstoneDP won on time"]

1. e4 {[%clk 0:03:00.9]} 1... e5 {[%clk 0:02:59.8]} 2. Nf3 {[%clk 0:02:57.4]}
2... Nf6 {[%clk 0:02:59.8]} 3. Nc3 {[%clk 0:02:55.3]} 3... Nc6 {[%clk
0:02:59.8]} 4. g3 {[%clk 0:02:52.8]} 4... Bc5 {[%clk 0:02:57.1]} 5. Bg2 {[%clk
0:02:52.5]} 5... d6 {[%clk 0:02:56.5]} 6. O-O {[%clk 0:02:52.6]} 6... a5 {[%clk
0:02:56.9]} 7. d3 {[%clk 0:02:52.7]} 7... h6 {[%clk 0:02:53.1]} 8. h3 {[%clk
0:02:52.6]} 8... O-O {[%clk 0:02:52.3]} 9. a3 {[%clk 0:02:51.5]} 9... Be6 {[%clk
0:02:46.7]} 10. Nd2 {[%clk 0:02:48.7]} 10... d5 {[%clk 0:02:43.6]} 11. Kh2
{[%clk 0:02:47.3]} 11... Re8 {[%clk 0:02:17]} 12. Nb3 {[%clk 0:02:26.8]} 12...
Ba7 {[%clk 0:02:13.4]} 13. Nd2 {[%clk 0:01:55.8]} 13... Nd4 {[%clk 0:02:10.9]}
14. f4 {[%clk 0:01:26.5]} 14... dxe4 {[%clk 0:02:10.7]} 15. Ndxe4 {[%clk
0:01:24.7]} 15... Nxe4 {[%clk 0:02:10.5]} 16. Nxe4 {[%clk 0:01:24.5]} 16... f5
{[%clk 0:01:48.1]} 17. Nc3 {[%clk 0:01:23.3]} 17... exf4 {[%clk 0:01:48.1]} 18.
Bxf4 {[%clk 0:01:22.9]} 18... c6 {[%clk 0:01:48.6]} 19. Qd2 {[%clk 0:01:20.3]}
19... Qf6 {[%clk 0:01:45.4]} 20. Rae1 {[%clk 0:01:19.8]} 20... Bf7 {[%clk
0:01:44.3]} 21. Rxe8+ {[%clk 0:01:08.8]} 21... Rxe8 {[%clk 0:01:45.2]} 22. Bc7
{[%clk 0:00:49.2]} 22... Qe7 {[%clk 0:01:17.3]} 23. Bxa5 {[%clk 0:00:28.8]}
23... b6 {[%clk 0:01:15.1]} 24. Bb4 {[%clk 0:00:26]} 24... c5 {[%clk 0:01:14.4]}
25. Nd5 {[%clk 0:00:26.4]} 25... Qd8 {[%clk 0:01:12.7]} 0-1

[Event "Late-Titled-Tuesday-Blitz-March-26-2024"]
[Site "Chess.com"]
[Date "2024.03.26"]
[Round "5"]
[White "yujiarun18"]
[Black "ernestina08chess"]
[Result "0-1"]
[WhiteElo "2116"]
[BlackElo "2265"]
[TimeControl "180+1"]
[EndTime "14:56:07 PDT"]
[Termination "ernestina08chess won by checkmate"]

1. e4 {[%clk 0:02:56.3]} 1... c5 {[%clk 0:02:55.5]} 2. Nf3 {[%clk 0:02:56.3]}
2... d6 {[%clk 0:02:55.7]} 3. d4 {[%clk 0:02:56.7]} 3... cxd4 {[%clk 0:02:56.6]}
4. Nxd4 {[%clk 0:02:57.1]} 4... Nf6 {[%clk 0:02:57.2]} 5. Nc3 {[%clk 0:02:57.3]}
5... a6 {[%clk 0:02:57.6]} 6. f3 {[%clk 0:02:57.4]} 6... e5 {[%clk 0:02:57.3]}
7. Nb3 {[%clk 0:02:58.2]} 7... Be7 {[%clk 0:02:57.3]} 8. Be3 {[%clk 0:02:58.8]}
8... h5 {[%clk 0:02:56.9]} 9. Qd2 {[%clk 0:02:58.4]} 9... Be6 {[%clk 0:02:56.9]}
10. O-O-O {[%clk 0:02:58.8]} 10... Nbd7 {[%clk 0:02:56.7]} 11. h3 {[%clk
0:02:59.5]} 11... h4 {[%clk 0:02:55.7]} 12. Kb1 {[%clk 0:02:56.3]} 12... Qc7
{[%clk 0:02:38]} 13. Nd5 {[%clk 0:02:46.9]} 13... Nxd5 {[%clk 0:02:36.6]} 14.
exd5 {[%clk 0:02:47.8]} 14... Bf5 {[%clk 0:02:37]} 15. Bd3 {[%clk 0:02:48.7]}
15... Bxd3 {[%clk 0:02:37.4]} 16. Qxd3 {[%clk 0:02:49.4]} 16... b5 {[%clk
0:02:32.5]} 17. Rhe1 {[%clk 0:02:35]} 17... Rc8 {[%clk 0:02:31.5]} 18. f4 {[%clk
0:02:29.9]} 18... O-O {[%clk 0:02:02.8]} 19. Bf2 {[%clk 0:02:24.1]} 19... Qc4
{[%clk 0:02:00.8]} 20. Qd2 {[%clk 0:02:20]} 20... Bf6 {[%clk 0:01:50.9]} 21. f5
{[%clk 0:02:16.5]} 21... Qc7 {[%clk 0:01:18.2]} 22. Na5 {[%clk 0:02:15.3]} 22...
Nb6 {[%clk 0:01:08.5]} 23. Qb4 {[%clk 0:02:00.2]} 23... Qxc2+ {[%clk 0:01:07.5]}
24. Ka1 {[%clk 0:01:59.6]} 24... Qxf2 {[%clk 0:01:07.6]} 25. Nb3 {[%clk
0:01:50.4]} 25... Nc4 {[%clk 0:01:02.2]} 26. Nc1 {[%clk 0:01:46.3]} 26... a5
{[%clk 0:00:54.9]} 27. Qb3 {[%clk 0:01:43.1]} 27... Nxb2 {[%clk 0:00:47.7]} 28.
Re2 {[%clk 0:01:37]} 28... Rxc1+ {[%clk 0:00:45.8]} 29. Kxb2 {[%clk 0:01:35.1]}
29... Qxe2+ {[%clk 0:00:44.2]} 30. Kxc1 {[%clk 0:01:35.3]} 30... Rc8+ {[%clk
0:00:42.7]} 31. Kb1 {[%clk 0:01:35.7]} 31... b4 {[%clk 0:00:40.4]} 32. Ka1
{[%clk 0:01:27.5]} 32... e4+ {[%clk 0:00:39.7]} 33. Kb1 {[%clk 0:01:28.1]} 33...
Rc3 {[%clk 0:00:38.4]} 34. Qb2 {[%clk 0:01:25.3]} 34... Qxb2+ {[%clk 0:00:28.4]}
35. Kxb2 {[%clk 0:01:24.8]} 35... Rd3+ {[%clk 0:00:29]} 36. Kc2 {[%clk
0:01:25.5]} 36... Rxd1 {[%clk 0:00:25.5]} 37. Kxd1 {[%clk 0:01:26.3]} 37... a4
{[%clk 0:00:26.1]} 38. Ke2 {[%clk 0:01:27.2]} 38... b3 {[%clk 0:00:26.3]} 39.
axb3 {[%clk 0:01:26.9]} 39... axb3 {[%clk 0:00:27.2]} 40. Kd2 {[%clk 0:01:27.6]}
40... b2 {[%clk 0:00:27.6]} 41. Kc2 {[%clk 0:01:28.5]} 41... e3 {[%clk 0:00:28]}
42. Kb1 {[%clk 0:01:28.1]} 42... e2 {[%clk 0:00:28.2]} 43. Kc2 {[%clk 0:01:29]}
43... e1=Q {[%clk 0:00:28]} 44. Kb3 {[%clk 0:01:29.9]} 44... b1=Q+ {[%clk
0:00:27.6]} 45. Kc4 {[%clk 0:01:30.8]} 45... Qeb4# {[%clk 0:00:27.2]} 0-1

[Event "Late-Titled-Tuesday-Blitz-March-26-2024"]
[Site "Chess.com"]
[Date "2024.03.26"]
[Round "5"]
[White "Shankland"]
[Black "djano"]
[Result "1-0"]
[WhiteElo "2916"]
[BlackElo "2673"]
[TimeControl "180+1"]
[EndTime "14:56:15 PDT"]
[Termination "Shankland won by resignation"]

1. e4 {[%clk 0:02:58.8]} 1... c5 {[%clk 0:02:59.6]} 2. Nf3 {[%clk 0:02:58.9]}
2... Nc6 {[%clk 0:02:59.8]} 3. d4 {[%clk 0:02:59]} 3... cxd4 {[%clk 0:03:00.7]}
4. Nxd4 {[%clk 0:02:59.2]} 4... g6 {[%clk 0:02:59.9]} 5. c4 {[%clk 0:02:58]}
5... e5 {[%clk 0:03:00.1]} 6. Ne2 {[%clk 0:02:56.4]} 6... Nf6 {[%clk 0:02:54.7]}
7. Nbc3 {[%clk 0:02:55.5]} 7... d6 {[%clk 0:02:52.6]} 8. g3 {[%clk 0:02:55.1]}
8... Bg7 {[%clk 0:02:46.1]} 9. Bg2 {[%clk 0:02:55]} 9... O-O {[%clk 0:02:46.2]}
10. O-O {[%clk 0:02:55.2]} 10... Be6 {[%clk 0:02:40.3]} 11. b3 {[%clk 0:02:55]}
11... Qe7 {[%clk 0:02:20.6]} 12. Ba3 {[%clk 0:02:54]} 12... Rfd8 {[%clk
0:02:20.8]} 13. Qd3 {[%clk 0:02:53.4]} 13... a5 {[%clk 0:02:02.5]} 14. Rad1
{[%clk 0:02:52.5]} 14... Nb4 {[%clk 0:02:02.8]} 15. Qd2 {[%clk 0:02:52.5]} 15...
Ng4 {[%clk 0:01:44.4]} 16. h3 {[%clk 0:02:47.7]} 16... Bh6 {[%clk 0:01:35]} 17.
Qb2 {[%clk 0:02:47]} 17... Nf6 {[%clk 0:01:27.5]} 18. Nb5 {[%clk 0:02:47]} 18...
Ne8 {[%clk 0:01:17.5]} 19. Nec3 {[%clk 0:02:46.4]} 19... Nc7 {[%clk 0:01:07.1]}
20. Qe2 {[%clk 0:02:41.8]} 20... Nca6 {[%clk 0:01:05.3]} 21. Bc1 {[%clk
0:02:36]} 21... Bxc1 {[%clk 0:01:01.1]} 22. Rxc1 {[%clk 0:02:36.9]} 22... Kg7
{[%clk 0:00:57.3]} 23. Rcd1 {[%clk 0:02:36.8]} 23... Rd7 {[%clk 0:00:52.7]} 24.
Rd2 {[%clk 0:02:36]} 24... Rad8 {[%clk 0:00:50.9]} 25. Qe3 {[%clk 0:02:35.5]}
25... Nc5 {[%clk 0:00:41.2]} 26. Rfd1 {[%clk 0:02:22.3]} 26... b6 {[%clk
0:00:41.6]} 27. Kh2 {[%clk 0:02:19.8]} 27... h6 {[%clk 0:00:41.3]} 28. h4 {[%clk
0:02:19.3]} 28... Bg4 {[%clk 0:00:38.8]} 29. f3 {[%clk 0:02:18.8]} 29... Be6
{[%clk 0:00:39]} 30. Bh3 {[%clk 0:02:13.5]} 30... f5 {[%clk 0:00:36.1]} 31. exf5
{[%clk 0:02:11.5]} 31... gxf5 {[%clk 0:00:36.7]} 32. f4 {[%clk 0:02:11.8]} 32...
e4 {[%clk 0:00:20.5]} 33. Nd5 {[%clk 0:02:11.7]} 33... Bxd5 {[%clk 0:00:15.3]}
34. Rxd5 {[%clk 0:02:11.5]} 34... Nxd5 {[%clk 0:00:13.9]} 35. Rxd5 {[%clk
0:02:12.4]} 35... Qf6 {[%clk 0:00:12.6]} 36. Nd4 {[%clk 0:02:11.4]} 36... Ne6
{[%clk 0:00:07.6]} 37. Nxe6+ {[%clk 0:02:10.5]} 37... Qxe6 {[%clk 0:00:05.8]}
38. Bxf5 {[%clk 0:02:11.2]} 38... Qf6 {[%clk 0:00:05.3]} 39. Bxd7 {[%clk
0:02:11.3]} 39... Rxd7 {[%clk 0:00:05.4]} 40. Qxe4 {[%clk 0:02:11.5]} 40... Re7
{[%clk 0:00:05.9]} 41. Qd4 {[%clk 0:02:10.9]} 41... Re2+ {[%clk 0:00:05.2]} 42.
Kh3 {[%clk 0:02:10.9]} 42... Rxa2 {[%clk 0:00:03.9]} 43. Qxf6+ {[%clk
0:02:10.1]} 43... Kxf6 {[%clk 0:00:04.8]} 44. Rxd6+ {[%clk 0:02:10.6]} 44... Kf5
{[%clk 0:00:04.2]} 45. Rxb6 {[%clk 0:02:09.7]} 45... h5 {[%clk 0:00:04.1]} 46.
Rh6 {[%clk 0:02:09.7]} 46... Ke4 {[%clk 0:00:04.7]} 47. Rxh5 {[%clk 0:02:09.1]}
47... Kf3 {[%clk 0:00:05.2]} 48. Rd5 {[%clk 0:02:07.4]} 48... Ra1 {[%clk
0:00:05]} 49. Rd3+ {[%clk 0:02:07.5]} 49... Ke4 {[%clk 0:00:04.7]} 50. Rc3
{[%clk 0:02:05.8]} 50... Kd4 {[%clk 0:00:05]} 51. Rc2 {[%clk 0:02:05.4]} 51...
Rb1 {[%clk 0:00:04.7]} 52. h5 {[%clk 0:02:02.3]} 1-0

[Event "Late-Titled-Tuesday-Blitz-March-26-2024"]
[Site "Chess.com"]
[Date "2024.03.26"]
[Round "5"]
[White "salgadoLO"]
[Black "azikom"]
[Result "0-1"]
[WhiteElo "2158"]
[BlackElo "2626"]
[TimeControl "180+1"]
[EndTime "14:56:25 PDT"]
[Termination "azikom won by resignation"]

1. e4 {[%clk 0:02:53.7]} 1... c6 {[%clk 0:03:00.9]} 2. d4 {[%clk 0:02:51]} 2...
d5 {[%clk 0:02:59.9]} 3. exd5 {[%clk 0:02:50.7]} 3... cxd5 {[%clk 0:03:00.1]} 4.
Bd3 {[%clk 0:02:51.1]} 4... Nc6 {[%clk 0:02:59.7]} 5. c3 {[%clk 0:02:50.9]} 5...
Nf6 {[%clk 0:02:59.3]} 6. h3 {[%clk 0:02:50]} 6... Qc7 {[%clk 0:02:56.8]} 7. Nf3
{[%clk 0:02:47.7]} 7... e6 {[%clk 0:02:52.8]} 8. O-O {[%clk 0:02:43.7]} 8... Bd6
{[%clk 0:02:53.3]} 9. Na3 {[%clk 0:02:34.9]} 9... Bxa3 {[%clk 0:02:45.4]} 10.
bxa3 {[%clk 0:02:33.6]} 10... O-O {[%clk 0:02:39.2]} 11. Re1 {[%clk 0:02:29.6]}
11... Ne7 {[%clk 0:02:33.5]} 12. Bd2 {[%clk 0:02:18.9]} 12... b6 {[%clk
0:02:32.9]} 13. Ne5 {[%clk 0:02:13.9]} 13... Bb7 {[%clk 0:02:33.1]} 14. Rc1
{[%clk 0:02:07.6]} 14... Ne4 {[%clk 0:02:31.5]} 15. Bf4 {[%clk 0:02:01.1]} 15...
Qd8 {[%clk 0:02:19.1]} 16. c4 {[%clk 0:01:52.3]} 16... f6 {[%clk 0:02:18.5]} 17.
Nf3 {[%clk 0:01:48.5]} 17... Ng6 {[%clk 0:02:18.2]} 18. Bh2 {[%clk 0:01:45.1]}
18... Rc8 {[%clk 0:02:15.9]} 19. h4 {[%clk 0:01:37.1]} 19... Ne7 {[%clk
0:02:05.2]} 20. cxd5 {[%clk 0:01:16.8]} 20... exd5 {[%clk 0:02:01.7]} 21. Qb3
{[%clk 0:01:01.5]} 21... Kh8 {[%clk 0:01:55.4]} 22. h5 {[%clk 0:00:58.5]} 22...
Nf5 {[%clk 0:01:50.5]} 23. Qa4 {[%clk 0:00:49.9]} 23... a6 {[%clk 0:01:44.8]}
24. Qb3 {[%clk 0:00:40.1]} 24... h6 {[%clk 0:01:32.3]} 25. Rxc8 {[%clk
0:00:38.1]} 25... Bxc8 {[%clk 0:01:28.9]} 26. Bxe4 {[%clk 0:00:36.5]} 26... dxe4
{[%clk 0:01:28.8]} 27. Rxe4 {[%clk 0:00:36.3]} 27... Bb7 {[%clk 0:01:29.4]} 28.
Re1 {[%clk 0:00:31.7]} 28... Bd5 {[%clk 0:01:28.9]} 29. Qd3 {[%clk 0:00:25.9]}
29... Qd7 {[%clk 0:01:28.5]} 30. Qxa6 {[%clk 0:00:15.7]} 30... Bxf3 {[%clk
0:01:27.5]} 31. gxf3 {[%clk 0:00:16.5]} 31... Nxd4 {[%clk 0:01:27.9]} 32. Qd3
{[%clk 0:00:14.2]} 32... Qd5 {[%clk 0:01:20]} 33. Qe4 {[%clk 0:00:11.4]} 33...
Nxf3+ {[%clk 0:01:17.4]} 34. Kh1 {[%clk 0:00:12]} 34... Qxh5 {[%clk 0:01:15.3]}
0-1